fUSD/lending_fUSD_20250202
["ID","MTS","AMOUNT","RATE_DAILY","PERIOD"]
[351280473,1738505520789,-1419.66,0.00012191,2]
[351280474,1738505520799,-899.67,0.00012191,2]
[351280475,1738505520809,-500.0,0.00012191,2]
[351280476,1738505520818,-500.0,0.00012191,2]
[351280477,1738505520828,-500.0,0.00012191,2]
[351280478,1738505520838,-814.85,0.00012191,2]
[351280479,1738505520847,-967.34,0.00012191,2]
[351280480,1738505520857,-984.06,0.00012191,2]
[351280481,1738505520948,-709.72,0.00012191,2]
[351280482,1738505520958,-580.72,0.00012191,2]
[351280483,1738505520968,-500.0,0.00012191,2]
[351280484,1738505520982,-509.47,0.00012191,2]
[351280485,1738505520993,-1025.92,0.00012191,2]
[351280486,1738505521003,-1529.4,0.00012191,2]
[351280487,1738505521013,-500.0,0.00012191,2]
[351280488,1738505521023,-736.8,0.00012191,2]
[351280489,1738505521033,-500.0,0.00012191,2]
[351280490,1738505521044,-500.0,0.00012191,2]
[351280491,1738505521055,-500.0,0.00012191,2]
[351280492,1738505521065,-500.0,0.00012191,2]
[351280493,1738505521075,-500.0,0.00012191,2]
[351280494,1738505521085,-500.0,0.00012191,2]
[351280495,1738505521094,-500.0,0.00012191,2]
[351280496,1738505521104,-794.58,0.00012191,2]
[351280497,1738505521114,-500.0,0.00012191,2]
[351280498,1738505521124,-515.19,0.00012191,2]
[351280499,1738505521134,-551.09,0.00012191,2]
[351280500,1738505521143,-500.0,0.00012191,2]
[351280501,1738505521153,-500.0,0.00012191,2]
[351280502,1738505521163,-1457.11,0.00012191,2]
[351280503,1738505521172,-500.0,0.00012191,2]
[351280504,1738505521182,-848.94,0.00012191,2]
[351280505,1738505521192,-562.76,0.00012191,2]
[351280506,1738505521202,-512.04,0.00012191,2]
[351280507,1738505521212,-1457.16,0.00012191,2]
[351280508,1738505521222,-500.0,0.00012191,2]
[351280509,1738505521235,-500.0,0.00012191,2]
[351280510,1738505521244,-280.92895203,0.00012191,2]
[351280511,1738505521254,-1032.24,0.00012191,2]
[351280512,1738505521263,-1061.96,0.00012191,2]
[351280513,1738505521273,-510.71,0.00012191,2]
[351280514,1738505521283,-500.0,0.00012191,2]
[351280515,1738505521292,-1015.65,0.00012191,2]
[351280516,1738505521302,-679.22,0.00012191,2]
[351280517,1738505521311,-1177.9,0.00012191,2]
[351280518,1738505521321,-500.0,0.00012191,2]
[351280519,1738505521331,-500.0,0.00012191,2]
[351280520,1738505521340,-584.42,0.00012191,2]
[351280521,1738505521350,-1657.79,0.00012191,2]
[351280522,1738505521360,-1057.32,0.00012191,2]
[351280523,1738505521370,-500.0,0.00012191,2]
[351280524,1738505521379,-500.0,0.00012191,2]
[351280525,1738505521388,-500.0,0.00012191,2]
[351280526,1738505521398,-737.32,0.00012191,2]
[351280527,1738505521408,-865.79,0.00012191,2]
[351280528,1738505521418,-1316.4,0.00012191,2]
[351280529,1738505521427,-500.0,0.00012191,2]
[351280530,1738505521437,-671.26,0.00012191,2]
[351280531,1738505521447,-751.62,0.00012191,2]
[351280532,1738505521456,-750.62,0.00012191,2]
[351280533,1738505521466,-1011.53,0.00012191,2]
[351280534,1738505521477,-500.0,0.00012191,2]
[351280535,1738505521487,-1248.28,0.00012191,2]
[351280536,1738505521496,-519.27,0.00012191,2]
[351280537,1738505521506,-500.0,0.00012191,2]
[351280538,1738505521515,-775.41,0.00012191,2]
[351280539,1738505521525,-500.0,0.00012191,2]
[351280540,1738505521544,-650.78,0.00012191,2]
[351280541,1738505521553,-500.0,0.00012191,2]
[351280542,1738505521563,-787.2,0.00012191,2]
[351280543,1738505521573,-500.0,0.00012191,2]
[351280544,1738505521584,-500.0,0.00012191,2]
[351280545,1738505521594,-1398.59,0.00012191,2]
[351280546,1738505521604,-2098.34,0.00012191,2]
[351280547,1738505521614,-1717.3,0.00012191,2]
[351280548,1738505521623,-500.0,0.00012191,2]
[351280549,1738505521633,-535.92,0.00012191,2]
[351280550,1738505521642,-500.0,0.00012191,2]
[351280551,1738505521652,-500.0,0.00012191,2]
[351280552,1738505521662,-520.83,0.00012191,2]
[351280553,1738505521672,-500.0,0.00012191,2]
[351280554,1738505521682,-500.0,0.00012191,2]
[351280555,1738505521692,-1388.03,0.00012191,2]
[351280556,1738505521701,-696.21,0.00012191,2]
[351280557,1738505521711,-1438.93,0.00012191,2]
[351280558,1738505521721,-638.42,0.00012191,2]
[351280559,1738505521733,-1523.64,0.00012191,2]
[351280560,1738505521743,-500.0,0.00012191,2]
[351280561,1738505521753,-500.0,0.00012191,2]
[351280562,1738505521763,-1164.79,0.00012191,2]
[351280563,1738505521774,-500.0,0.00012191,2]
[351280564,1738505521783,-2008.34,0.00012191,2]
[351280565,1738505521793,-251.50647721,0.00012191,2]
[351280566,1738505521803,-867.5,0.00012191,2]
[351280567,1738505521813,-500.0,0.00012191,2]
[351280568,1738505521823,-930.83,0.00012191,2]
[351280569,1738505521833,-1142.86,0.00012191,2]
[351280570,1738505521843,-1063.97,0.00012191,2]
[351280571,1738505521855,-5963.38,0.00012191,2]
[351280572,1738505521866,-632.65,0.00012191,2]
[351280573,1738505521876,-528.98,0.00012191,2]
[351280574,1738505521886,-939.46,0.00012191,2]
[351280575,1738505521896,-500.0,0.00012191,2]
[351280576,1738505521906,-2575.73,0.00012191,2]
[351280577,1738505521916,-1411.82,0.00012191,2]
[351280578,1738505521926,-500.0,0.00012191,2]
[351280579,1738505521936,-500.0,0.00012191,2]
[351280580,1738505521946,-500.0,0.00012191,2]
[351280581,1738505521956,-4332.07,0.00012191,2]
[351280582,1738505521966,-500.0,0.00012191,2]
[351280583,1738505521978,-623.14,0.00012191,2]
[351280584,1738505521988,-808.47,0.00012191,2]
[351280585,1738505521998,-500.0,0.00012191,2]
[351280586,1738505522009,-500.0,0.00012191,2]
[351280587,1738505522020,-500.0,0.00012191,2]
[351280588,1738505522030,-500.0,0.00012191,2]
[351280589,1738505522041,-1167.23,0.00012191,2]
[351280590,1738505522053,-1073.14,0.00012191,2]
[351280591,1738505522063,-1266.06,0.00012191,2]
[351280592,1738505522074,-153.66826318,0.00012191,2]
[351280593,1738505522084,-1643.83,0.00012191,2]
[351280594,1738505522094,-1098.43,0.00012191,2]
[351280595,1738505522104,-2134.84,0.00012191,2]
[351280596,1738505522113,-7531.63,0.00012191,2]
[351280597,1738505522123,-636.47,0.00012191,2]
[351280598,1738505522133,-2806.74,0.00012191,2]
[351280599,1738505522143,-500.0,0.00012191,2]
[351280600,1738505522153,-165.18643458,0.00012191,2]
[351280601,1738505522163,-4457.82,0.00012191,2]
[351280602,1738505522173,-500.0,0.00012191,2]
[351280603,1738505522183,-500.0,0.00012191,2]
[351280604,1738505522194,-1431.15,0.00012191,2]
[351280605,1738505522204,-1068.36,0.00012191,2]
[351280606,1738505522214,-500.0,0.00012191,2]
[351280607,1738505522224,-3317.75,0.00012191,2]
[351280608,1738505522240,-500.0,0.00012191,2]
[351280609,1738505522250,-3236.23,0.00012191,2]
[351280610,1738505522261,-500.0,0.00012191,2]
[351280611,1738505522271,-500.0,0.00012191,2]
[351280612,1738505522282,-500.0,0.00012191,2]
[351280613,1738505522293,-998.58,0.00012191,2]
[351280614,1738505522303,-649.19,0.00012191,2]
[351280615,1738505522313,-3603.07,0.00012191,2]
[351280616,1738505522324,-647.76,0.00012191,2]
[351280617,1738505522334,-518.71,0.00012191,2]
[351280618,1738505522344,-2773.67,0.00012191,2]
[351280619,1738505522355,-500.0,0.00012191,2]
[351280620,1738505522366,-3478.77,0.00012191,2]
[351280621,1738505522377,-1377.07,0.00012191,2]
[351280622,1738505522387,-1559.79,0.00012191,2]
[351280623,1738505522399,-500.0,0.00012191,2]
[351280624,1738505522409,-993.51,0.00012191,2]
[351280625,1738505522420,-1353.14,0.00012191,2]
[351280626,1738505522430,-532.1,0.00012191,2]
[351280627,1738505522440,-1889.01,0.00012191,2]
[351280628,1738505522450,-5584.57,0.00012191,2]
[351280629,1738505522462,-628.58,0.00012191,2]
[351280630,1738505522474,-500.0,0.00012191,2]
[351280631,1738505522491,-1706.09,0.00012191,2]
[351280632,1738505522503,-500.0,0.00012191,2]
[351280633,1738505522514,-1416.56,0.00012191,2]
[351280634,1738505522525,-966.92,0.00012191,2]
[351280635,1738505522536,-820.07,0.00012191,2]
[351280636,1738505522549,-865.01,0.00012191,2]
[351280637,1738505522560,-555.56,0.00012191,2]
[351280638,1738505522571,-500.0,0.00012191,2]
[351280639,1738505522581,-6599.2,0.00012191,2]
[351280640,1738505522592,-500.0,0.00012191,2]
[351280641,1738505522603,-500.0,0.00012191,2]
[351280642,1738505522616,-4362.97,0.00012191,2]
[351280643,1738505522627,-1475.65,0.00012191,2]
[351280644,1738505522638,-3023.49,0.00012191,2]
[351280645,1738505522649,-506.71247821,0.00012191,2]
[351280646,1738505522661,-1337.09,0.00012191,2]
[351280647,1738505522672,-786.41,0.00012191,2]
[351280648,1738505522682,-1205.96,0.00012191,2]
[351280649,1738505522693,-1903.11,0.00012191,2]
[351280650,1738505522703,-2817.82,0.00012191,2]
[351280651,1738505522714,-2360.45,0.00012191,2]
[351280652,1738505522724,-500.0,0.00012191,2]
[351280653,1738505522741,-583.26,0.00012191,2]
[351280654,1738505522752,-934.52,0.00012191,2]
[351280655,1738505522763,-1388.22,0.00012191,2]
[351280656,1738505522774,-2432.51,0.00012191,2]
[351280657,1738505522784,-609.67,0.00012191,2]
[351280658,1738505522795,-2243.95,0.00012191,2]
[351280659,1738505522805,-1262.46,0.00012191,2]
[351280660,1738505522816,-2572.68,0.00012191,2]
[351280661,1738505522827,-1950.74,0.00012191,2]
[351280662,1738505522837,-500.0,0.00012191,2]
[351280663,1738505522848,-1181.19,0.00012191,2]
[351280664,1738505522858,-871.86,0.00012191,2]
[351280665,1738505522869,-500.0,0.00012191,2]
[351280666,1738505522879,-1126.88,0.00012191,2]
[351280667,1738505522889,-2805.0,0.00012191,2]
[351280668,1738505522899,-541.6,0.00012191,2]
[351280669,1738505522910,-2478.61,0.00012191,2]
[351280670,1738505522920,-3490.69,0.00012191,2]
[351280671,1738505522930,-1886.99,0.00012191,2]
[351280672,1738505522940,-693.62,0.00012191,2]
[351280673,1738505522950,-1166.42,0.00012191,2]
[351280674,1738505522960,-4718.72,0.00012191,2]
[351280675,1738505522970,-646.83,0.00012191,2]
[351280676,1738505522985,-500.0,0.00012191,2]
[351280677,1738505522995,-1219.56,0.00012191,2]
[351280678,1738505523005,-1713.43,0.00012191,2]
[351280679,1738505523016,-500.0,0.00012191,2]
[351280680,1738505523026,-764.96,0.00012191,2]
[351280681,1738505523036,-742.31,0.00012191,2]
[351280682,1738505523046,-585.08,0.00012191,2]
[351280683,1738505523056,-5247.94,0.00012191,2]
[351280684,1738505523067,-1545.21,0.00012191,2]
[351280685,1738505523078,-5157.65,0.00012191,2]
[351280686,1738505523089,-2240.61,0.00012191,2]
[351280687,1738505523099,-1481.58,0.00012191,2]
[351280688,1738505523110,-535.67,0.00012191,2]
[351280689,1738505523120,-1485.26,0.00012191,2]
[351280690,1738505523130,-1399.19,0.00012191,2]
[351280691,1738505523141,-3226.98,0.00012191,2]
[351280692,1738505523151,-1311.36,0.00012191,2]
[351280693,1738505523163,-500.0,0.00012191,2]
[351280694,1738505523174,-500.0,0.00012191,2]
[351280695,1738505523185,-5680.36,0.00012191,2]
[351280696,1738505523196,-2300.21,0.00012191,2]
[351280697,1738505523206,-500.0,0.00012191,2]
[351280698,1738505523216,-2521.42,0.00012191,2]
[351280699,1738505523226,-2782.57,0.00012191,2]
[351280700,1738505523239,-500.0,0.00012191,2]
[351280701,1738505523249,-500.0,0.00012191,2]
[351280702,1738505523260,-1766.1,0.00012191,2]
[351280703,1738505523270,-1697.0,0.00012191,2]
[351280704,1738505523281,-1939.71,0.00012191,2]
[351280705,1738505523293,-787.48,0.00012191,2]
[351280706,1738505523304,-1300.79,0.00012191,2]
[351280707,1738505523315,-3484.78,0.00012191,2]
[351280708,1738505523325,-500.0,0.00012191,2]
[351280709,1738505523335,-512.49,0.00012191,2]
[351280710,1738505523346,-500.0,0.00012191,2]
[351280711,1738505523356,-1213.23,0.00012191,2]
[351280712,1738505523366,-5629.82,0.00012191,2]
[351280713,1738505523377,-2449.26,0.00012191,2]
[351280714,1738505523387,-758.01,0.00012191,2]
[351280715,1738505523398,-536.29894113,0.00012191,2]
[351280716,1738505523408,-848.99,0.00012191,2]
[351280717,1738505523419,-888.7,0.00012191,2]
[351280718,1738505523429,-4605.95,0.00012191,2]
[351280719,1738505523439,-2359.63,0.00012191,2]
[351280720,1738505523449,-892.49,0.00012191,2]
[351280721,1738505523460,-871.23,0.00012191,2]
[351280722,1738505523471,-1094.04,0.00012191,2]
[351280723,1738505523485,-6442.67,0.00012191,2]
[351280724,1738505523496,-2052.81,0.00012191,2]
[351280725,1738505523507,-1297.27,0.00012191,2]
[351280726,1738505523517,-2655.71,0.00012191,2]
[351280727,1738505523530,-1885.94,0.00012191,2]
[351280728,1738505523542,-500.0,0.00012191,2]
[351280729,1738505523553,-500.0,0.00012191,2]
[351280730,1738505523564,-10441.41,0.00012191,2]
[351280731,1738505523575,-1553.08,0.00012191,2]
[351280732,1738505523587,-500.0,0.00012191,2]
[351280733,1738505523597,-1012.3,0.00012191,2]
[351280734,1738505523608,-500.0,0.00012191,2]
[351280735,1738505523620,-4514.04,0.00012191,2]
[351280736,1738505523631,-3003.61,0.00012191,2]
[351280737,1738505523642,-2902.94,0.00012191,2]
[351280738,1738505523652,-1964.45,0.00012191,2]
[351280739,1738505523662,-4716.6,0.00012191,2]
[351280740,1738505523672,-530.90839102,0.00012191,2]
[351280741,1738505523683,-1593.35,0.00012191,2]
[351280742,1738505523693,-500.0,0.00012191,2]
[351280743,1738505523704,-1637.22,0.00012191,2]
[351280744,1738505523715,-3416.51,0.00012191,2]
[351280745,1738505523725,-882.55,0.00012191,2]
[351280746,1738505523741,-500.0,0.00012191,2]
[351280747,1738505523752,-4127.67,0.00012191,2]
[351280748,1738505523763,-9172.95,0.00012191,2]
[351280749,1738505523774,-716.69,0.00012191,2]
[351280750,1738505523784,-363.1075182,0.00012191,2]
[351280751,1738505523795,-3935.05,0.00012191,2]
[351280752,1738505523806,-994.51,0.00012191,2]
[351280753,1738505523816,-500.0,0.00012191,2]
[351280754,1738505523827,-500.0,0.00012191,2]
[351280755,1738505523837,-2231.33,0.00012191,2]
[351280756,1738505523847,-646.36,0.00012191,2]
[351280757,1738505523857,-7703.46,0.00012191,2]
[351280758,1738505523867,-612.75,0.00012191,2]
[351280759,1738505523876,-6130.86,0.00012191,2]
[351280760,1738505523886,-1008.29,0.00012191,2]
[351280761,1738505523895,-4888.75,0.00012191,2]
[351280762,1738505523905,-4468.98,0.00012191,2]
[351280763,1738505523915,-874.52,0.00012191,2]
[351280764,1738505523924,-346.11663442,0.00012191,2]
[351280765,1738505523933,-7017.85,0.00012191,2]
[351280766,1738505523943,-7067.83,0.00012191,2]
[351280767,1738505523953,-298.28757832,0.00012191,2]
[351280768,1738505523963,-504.51,0.00012191,2]
[351280769,1738505523974,-1694.57,0.00012191,2]
[351280770,1738505523987,-500.0,0.00012191,2]
[351280771,1738505523998,-809.09,0.00012191,2]
[351280772,1738505524008,-1463.68,0.00012191,2]
[351280773,1738505524018,-500.0,0.00012191,2]
[351280774,1738505524029,-957.1,0.00012191,2]
[351280775,1738505524039,-25450.62,0.00012191,2]
[351280776,1738505524050,-5901.35,0.00012191,2]
[351280777,1738505524060,-3194.77,0.00012191,2]
[351280778,1738505524070,-972.11,0.00012191,2]
[351280779,1738505524080,-500.0,0.00012191,2]
[351280780,1738505524090,-409.74519386,0.00012191,2]
[351280781,1738505524100,-978.28,0.00012191,2]
[351280782,1738505524111,-1927.34,0.00012191,2]
[351280783,1738505524121,-1313.38,0.00012191,2]
[351280784,1738505524132,-2290.65,0.00012191,2]
[351280785,1738505524143,-500.0,0.00012191,2]
[351280786,1738505524334,-1822.98,0.00012191,2]
[351280787,1738505524357,-405.43,0.00012191,2]
[351280788,1738505524367,-778.33,0.00012191,2]
[351280789,1738505524376,-2811.74,0.00012191,2]
[351280790,1738505524386,-500.0,0.00012191,2]
[351280791,1738505524397,-4241.49,0.00012191,2]
[351280792,1738505524406,-2753.15,0.00012191,2]
[351280793,1738505524416,-3179.79,0.00012191,2]
[351280794,1738505524426,-11875.49,0.00012191,2]
[351280795,1738505524438,-590.79,0.00012191,2]
[351280796,1738505524448,-500.0,0.00012191,2]
[351280797,1738505524459,-2422.99,0.00012191,2]
[351280798,1738505524468,-500.0,0.00012191,2]
[351280799,1738505524480,-1805.01,0.00012191,2]
[351280800,1738505524490,-508.44190766,0.00012191,2]
[351280801,1738505524501,-500.0,0.00012191,2]
[351280802,1738505524511,-8941.69,0.00012191,2]
[351280803,1738505524521,-1720.61,0.00012191,2]
[351280804,1738505524532,-890.83,0.00012191,2]
[351280805,1738505524544,-500.0,0.00012191,2]
[351280806,1738505524555,-500.0,0.00012191,2]
[351280807,1738505524566,-924.98,0.00012191,2]
[351280808,1738505524577,-2796.09,0.00012191,2]
[351280809,1738505524587,-753.96,0.00012191,2]
[351280810,1738505524598,-2827.17,0.00012191,2]
[351280811,1738505524608,-1515.55,0.00012191,2]
[351280812,1738505524621,-500.0,0.00012191,2]
[351280813,1738505524630,-8022.15,0.00012191,2]
[351280814,1738505524640,-500.0,0.00012191,2]
[351280815,1738505524651,-500.0,0.00012191,2]
[351280816,1738505524661,-1171.94,0.00012191,2]
[351280817,1738505524671,-741.26,0.00012191,2]
[351280818,1738505524681,-1314.16,0.00012191,2]
[351280819,1738505524691,-500.0,0.00012191,2]
[351280820,1738505524701,-500.0,0.00012191,2]
[351280821,1738505524713,-596.08,0.00012191,2]
[351280822,1738505524723,-2587.99,0.00012191,2]
[351280823,1738505524736,-500.0,0.00012191,2]
[351280824,1738505524746,-155.292379,0.00012191,2]
[351280825,1738505524755,-770.44,0.00012191,2]
[351280826,1738505524765,-3707.36,0.00012191,2]
[351280827,1738505524775,-500.0,0.00012191,2]
[351280828,1738505524785,-651.22,0.00012191,2]
[351280829,1738505524795,-500.0,0.00012191,2]
[351280830,1738505524804,-500.0,0.00012191,2]
[351280831,1738505524814,-500.0,0.00012218,2]
[351280832,1738505524823,-208.33333,0.0001222,2]
[351280833,1738505524833,-1000.0,0.00012221,2]
[351280834,1738505524843,-1000.0,0.00012221,2]
[351280835,1738505524853,-206.75551577,0.00012228,2]
[351280836,1738505524863,-19262.07849874,0.00012228,2]
[351280837,1738505524873,-500.0,0.00012245,2]
[351280838,1738505524883,-500.0,0.00012272,2]
[351280839,1738505524893,-500.0,0.000123,2]
[351280840,1738505524904,-500.0,0.00012327,2]
[351280841,1738505524914,-500.0,0.00012327,2]
[351280842,1738505524924,-500.0,0.00012328,2]
[351280843,1738505524934,-500.0,0.00012328,2]
[351280844,1738505524944,-559.46,0.00012328,2]
[351280845,1738505524954,-500.0,0.00012328,2]
[351280846,1738505524964,-803.7,0.00012328,2]
[351280847,1738505524974,-500.0,0.00012328,2]
[351280848,1738505524986,-500.0,0.00012328,2]
[351280849,1738505524995,-500.0,0.00012328,2]
[351280850,1738505525005,-801.06,0.00012328,2]
[351280851,1738505525014,-500.0,0.00012328,2]
[351280852,1738505525024,-500.0,0.00012328,2]
[351280853,1738505525034,-773.23,0.00012328,2]
[351280854,1738505525044,-500.0,0.00012328,2]
[351280855,1738505525053,-759.9,0.00012328,2]
[351280856,1738505525063,-1260.15,0.00012328,2]
[351280857,1738505525073,-589.03,0.00012328,2]
[351280858,1738505525083,-500.0,0.00012328,2]
[351280859,1738505525093,-500.0,0.00012328,2]
[351280860,1738505525103,-500.0,0.00012328,2]
[351280861,1738505525113,-266.55623525,0.00012328,2]
[351280862,1738505525123,-1063.41,0.00012328,2]
[351280863,1738505525132,-673.02,0.00012328,2]
[351280864,1738505525142,-500.0,0.00012328,2]
[351280865,1738505525151,-821.68,0.00012328,2]
[351280866,1738505525161,-549.88,0.00012328,2]
[351280867,1738505525170,-500.0,0.00012328,2]
[351280868,1738505525180,-703.15,0.00012328,2]
[351280869,1738505525190,-500.0,0.00012328,2]
[351280870,1738505525199,-828.9,0.00012328,2]
[351280871,1738505525209,-627.47,0.00012328,2]
[351280872,1738505525219,-731.11,0.00012328,2]
[351280873,1738505525230,-500.0,0.00012328,2]
[351280874,1738505525239,-500.0,0.00012328,2]
[351280875,1738505525249,-592.69,0.00012328,2]
[351280876,1738505525258,-500.0,0.00012328,2]
[351280877,1738505525269,-500.0,0.00012328,2]
[351280878,1738505525278,-625.97,0.00012328,2]
[351280879,1738505525287,-500.0,0.00012328,2]
[351280880,1738505525297,-500.0,0.00012328,2]
[351280881,1738505525306,-500.0,0.00012328,2]
[351280882,1738505525316,-661.86,0.00012328,2]
[351280883,1738505525325,-552.57,0.00012328,2]
[351280884,1738505525334,-3015.63,0.00012328,2]
[351280885,1738505525344,-500.0,0.00012328,2]
[351280886,1738505525354,-635.12,0.00012328,2]
[351280887,1738505525363,-1112.86,0.00012328,2]
[351280888,1738505525373,-511.08,0.00012328,2]
[351280889,1738505525382,-910.85,0.00012328,2]
[351280890,1738505525393,-500.0,0.00012328,2]
[351280891,1738505525403,-500.0,0.00012328,2]
[351280892,1738505525413,-738.14,0.00012328,2]
[351280893,1738505525423,-500.0,0.00012328,2]
[351280894,1738505525432,-1482.76,0.00012328,2]
[351280895,1738505525442,-500.0,0.00012328,2]
[351280896,1738505525452,-500.0,0.00012328,2]
[351280897,1738505525462,-545.77,0.00012328,2]
[351280898,1738505525471,-500.0,0.00012328,2]
[351280899,1738505525482,-735.2,0.00012328,2]
[351280900,1738505525492,-717.38,0.00012328,2]
[351280901,1738505525502,-500.0,0.00012328,2]
[351280902,1738505525512,-500.0,0.00012328,2]
[351280903,1738505525522,-2333.39,0.00012328,2]
[351280904,1738505525536,-618.28,0.00012328,2]
[351280905,1738505525546,-500.0,0.00012328,2]
[351280906,1738505525555,-2305.89,0.00012328,2]
[351280907,1738505525564,-703.3,0.00012328,2]
[351280908,1738505525574,-2217.46,0.00012328,2]
[351280909,1738505525584,-500.0,0.00012328,2]
[351280910,1738505525594,-573.42,0.00012328,2]
[351280911,1738505525604,-2053.36,0.00012328,2]
[351280912,1738505525614,-1106.04,0.00012328,2]
[351280913,1738505525624,-2139.13,0.00012328,2]
[351280914,1738505525634,-500.0,0.00012328,2]
[351280915,1738505525643,-500.0,0.00012328,2]
[351280916,1738505525652,-1316.15,0.00012328,2]
[351280917,1738505525662,-500.0,0.00012328,2]
[351280918,1738505525671,-500.0,0.00012328,2]
[351280919,1738505525680,-548.83,0.00012328,2]
[351280920,1738505525690,-553.21,0.00012328,2]
[351280921,1738505525699,-525.3,0.00012328,2]
[351280922,1738505525708,-500.0,0.00012328,2]
[351280923,1738505525718,-2325.54,0.00012328,2]
[351280924,1738505525729,-1109.74,0.00012328,2]
[351280925,1738505525738,-500.44,0.00012328,2]
[351280926,1738505525747,-681.73,0.00012328,2]
[351280927,1738505525757,-677.93,0.00012328,2]
[351280928,1738505525766,-513.34,0.00012328,2]
[351280929,1738505525776,-1154.2,0.00012328,2]
[351280930,1738505525785,-2022.69,0.00012328,2]
[351280931,1738505525795,-685.35,0.00012328,2]
[351280932,1738505525804,-500.0,0.00012328,2]
[351280933,1738505525814,-500.0,0.00012328,2]
[351280934,1738505525823,-500.0,0.00012328,2]
[351280935,1738505525833,-550.64,0.00012328,2]
[351280936,1738505525843,-500.0,0.00012328,2]
[351280937,1738505525853,-1342.11,0.00012328,2]
[351280938,1738505525862,-500.0,0.00012328,2]
[351280939,1738505525872,-2093.39,0.00012328,2]
[351280940,1738505525882,-880.18,0.00012328,2]
[351280941,1738505525892,-1643.92,0.00012328,2]
[351280942,1738505525901,-500.0,0.00012328,2]
[351280943,1738505525910,-793.33,0.00012328,2]
[351280944,1738505525920,-500.0,0.00012328,2]
[351280945,1738505525930,-500.0,0.00012328,2]
[351280946,1738505525939,-500.0,0.00012328,2]
[351280947,1738505525948,-1232.16,0.00012328,2]
[351280948,1738505525958,-500.0,0.00012328,2]
[351280949,1738505525968,-588.54,0.00012328,2]
[351280950,1738505525977,-500.0,0.00012328,2]
[351280951,1738505525987,-534.34,0.00012328,2]
[351280952,1738505525997,-538.87,0.00012328,2]
[351280953,1738505526006,-793.28,0.00012328,2]
[351280954,1738505526016,-500.0,0.00012328,2]
[351280955,1738505526025,-1592.88,0.00012328,2]
[351280956,1738505526035,-616.53,0.00012328,2]
[351280957,1738505526044,-500.0,0.00012328,2]
[351280958,1738505526054,-500.0,0.00012328,2]
[351280959,1738505526063,-1854.87,0.00012328,2]
[351280960,1738505526073,-1690.33,0.00012328,2]
[351280961,1738505526083,-500.0,0.00012328,2]
[351280962,1738505526092,-500.0,0.00012328,2]
[351280963,1738505526101,-534.43,0.00012328,2]
[351280964,1738505526111,-508.93,0.00012328,2]
[351280965,1738505526122,-500.0,0.00012328,2]
[351280966,1738505526132,-637.72,0.00012328,2]
[351280967,1738505526141,-1150.84,0.00012328,2]
[351280968,1738505526151,-508.66,0.00012328,2]
[351280969,1738505526160,-500.0,0.00012328,2]
[351280970,1738505526169,-586.07,0.00012328,2]
[351280971,1738505526179,-800.25,0.00012328,2]
[351280972,1738505526188,-731.54,0.00012328,2]